fUST/lending_fUST_20240523
["ID","MTS","AMOUNT","RATE_DAILY","PERIOD"]
[327740793,1716414646738,-438.65771451,0.00019681,2]
[327740794,1716414646749,-40546.30048151,0.0001978,2]
[327740795,1716414646758,-10512.91470053,0.00019781,2]
[327740796,1716414646767,-15000.0,0.00019782,2]
[327740797,1716414646777,-8237.2797602,0.00019805,2]
[327740798,1716414646786,-22851.03789124,0.0002,2]
[327740799,1716414646795,-218.75420974,0.00020912,2]
[327740800,1716414646804,-500.0,0.00020912,2]
[327740801,1716414646813,-500.0,0.00020912,2]
[327740802,1716414646823,-500.0,0.00020912,2]
[327740803,1716414646831,-637.04555568,0.00020912,2]
[327740804,1716414646840,-3989.2155267,0.00020913,2]
[327740805,1716414646852,-2162.86660936,0.00020913,2]
[327740806,1716414646861,-174.85983164,0.000239,2]
[327740807,1716414646870,-229.8,0.00023964,3]
[327740808,1716414646879,-159.160023,0.00024384,2]
[327740809,1716414646888,-207.082218,0.00024384,2]
[327740810,1716414646897,-229.8,0.00024824,5]
[327740811,1716414646906,-362.20721548,0.00025,2]
[327740812,1716414646915,-229.8,0.00025684,5]
[327740813,1716414646925,-153.0,0.00026491,2]
[327740814,1716414646935,-291.5019197,0.00026491,2]
[327740815,1716414646945,-229.8,0.00026544,5]
[327740816,1716414646954,-596.86893254,0.000269,5]
[327740817,1716414646963,-153.0,0.00027123,2]
[327740818,1716414646972,-153.0,0.00027123,2]
[327740819,1716414646981,-153.0,0.00027123,2]
[327740820,1716414646990,-153.0,0.00027123,2]
[327740821,1716414647000,-153.0,0.00027123,2]
[327740822,1716414647009,-291.5019197,0.00027313,2]
[327740823,1716414647018,-291.5019197,0.00027313,2]
[327740824,1716414647027,-291.5019197,0.00027313,2]
[327740825,1716414647036,-291.5019197,0.00027313,2]
[327740826,1716414647045,-290.5686341,0.00027313,2]
[327740827,1716414647054,-312.10013264,0.00027397,2]
[327740828,1716414647065,-500.0,0.00027397,2]
[327740829,1716414647077,-500.0,0.00027397,2]
[327740830,1716414647086,-500.0,0.00027397,2]
[327740831,1716414647095,-454.62070215,0.00027397,2]
[327740832,1716414647104,-500.0,0.00027397,2]
[327740833,1716414647114,-171.2,0.000274,2]
[327740834,1716414647123,-229.8,0.00027404,5]
[327740835,1716414647133,-2504.21153022,0.00027484,2]
[327740836,1716414647142,-4282.88932285,0.00027484,10]
[327740837,1716414647152,-456.43843438,0.00027484,2]
[327740838,1716414647162,-174.7874625,0.00027671,2]
[327740839,1716414647171,-2029.32,0.00027886,3]
[327740840,1716414647180,-26923.11138996,0.00027896,3]
[327740841,1716414647190,-309.70288275,0.00027897,2]
[327740842,1716414647199,-289.74371757,0.00027898,2]
[327740843,1716414647208,-309.7831518,0.00027898,2]
[327740844,1716414647217,-293.0554936,0.00027898,2]
[327740845,1716414647226,-3293.97669547,0.00027898,2]
[327740846,1716414647235,-304.6642375,0.00027898,2]
[327740847,1716414647244,-818.49851209,0.00027898,2]
[327740848,1716414647254,-11056.52493855,0.00027898,2]
[327740849,1716414647263,-689.62849008,0.00027898,2]
[327740850,1716414647272,-881.54810298,0.00027899,11]
[327740851,1716414647282,-736.88819094,0.00027899,2]
[327740852,1716414647291,-194.40462225,0.00027899,2]
[327740853,1716414647299,-3000.0,0.00027899,10]
[327740854,1716414647308,-3000.0,0.00027899,10]
[327740855,1716414647318,-3000.0,0.00027899,10]
[327740856,1716414647326,-2974.83698465,0.00027899,10]
[327740857,1716414647335,-34702.02035045,0.000279,3]
[327740858,1716414647345,-320358.16160423,0.00027996,2]
[327740859,1716414647354,-151.905939,0.00027996,2]
[327740860,1716414647363,-151.0,0.00027996,2]
[327740861,1716414647372,-278.072278,0.00027996,2]
[327740862,1716414647381,-278.072278,0.00027996,2]
[327740863,1716414647390,-151.0,0.00027996,2]
[327740864,1716414647399,-151.0,0.00027996,2]
[327740865,1716414647408,-151.0,0.00027996,2]
[327740866,1716414647417,-151.0,0.00027996,2]
[327740867,1716414647426,-151.0,0.00027996,2]
[327740868,1716414647436,-529.77517473,0.00027998,90]
[327740869,1716414647445,-214.74140224,0.00027998,2]
[327740870,1716414647455,-156.44677835,0.00027998,2]
[327740871,1716414647464,-8438.49694162,0.00027998,2]
[327740880,1716414769437,1339.50128837,9.999e-05,2]
[327740881,1716414775956,154.9690062,9.999e-05,2]
[327740891,1716414819286,2114.91734672,9.899e-05,2]
[327740979,1716415832602,-1586.21617874,0.00016851,2]
[327740980,1716415832614,-250.0,0.00016851,2]
[327740981,1716415832626,-332.38819351,0.00016851,2]
[327740982,1716415832638,-287.92256871,0.00016851,2]
[327740983,1716415832649,-1415.9412425,0.00016851,2]
[327741027,1716415838544,-4947.35779506,0.00016851,2]
[327741029,1716415838556,-6180.17402148,0.00016851,2]
[327741031,1716415838565,-3000.0,0.00016852,2]
[327741033,1716415838574,-24900.0,0.00018173,2]
[327741035,1716415838583,-561.57867273,0.00018566,2]
[327741106,1716415841007,-658.04959527,0.00018566,2]
[327741108,1716415841018,-406.3173776,0.00018996,2]
[327741110,1716415841027,-565.74201101,0.00019899,2]
[327741112,1716415841037,-13725.13097864,0.00019999,2]
[327741124,1716415841155,-6821.04807999,0.00019999,2]
[327741126,1716415841165,-3181.74816062,0.0002,10]
[327741128,1716415841175,-1006.49837984,0.00020912,2]
[327741130,1716415841186,-2351.20384724,0.00020912,2]
[327741165,1716415843774,-357.46461018,0.00020912,2]
[327741168,1716415843786,-302.00997705,0.00020912,2]
[327741210,1716415881204,283.72768462,0.000137,2]
[327741211,1716415899912,1684.91556334,0.00015,2]
[327741222,1716415935162,1149.63675721,0.00015,2]
[327741223,1716415957590,154.9690062,0.0001485,2]
[327741224,1716415973575,227.09497996,0.0001485,2]
[327741231,1716416014022,498.08293822,0.00019593,11]
[327741232,1716416016252,2190.70801779,0.0002,11]
[327741255,1716416187975,548.83,0.00010959,2]
[327741256,1716416198511,457.35,0.00010959,2]
[327741257,1716416209058,381.13,0.00010959,2]
[327741258,1716416219611,317.61,0.00010959,2]
[327741262,1716416230201,264.67,0.00010959,2]
[327741263,1716416240770,220.56,0.00010959,2]
[327741264,1716416251353,183.8,0.00010959,2]
[327741267,1716416263147,182.87,0.00010959,2]
[327741268,1716416284023,152.4,0.00010959,2]
[327741269,1716416294627,762.0,0.00010959,2]
[327741270,1716416315503,534.77,0.00010959,2]
[327741274,1716416454251,291.87095363,0.00012967,2]
[327741281,1716416474201,160.86567857,0.00012967,2]
[327741282,1716416498722,1149.63675721,0.00015,2]
[327741284,1716416618490,921.42781077,0.00014,2]
[327741297,1716416858847,22694.8556539,0.00015493,2]
[327741298,1716416872417,2312.7403899,0.00015493,2]
[327741301,1716417006238,3000.0,0.00015213,2]
[327741340,1716417032833,-386.01217285,0.00016186,2]
[327741342,1716417032845,-763.62458436,0.00016186,2]
[327741344,1716417032855,-838.19359247,0.00016187,2]
[327741346,1716417032865,-34951.47558299,0.00016188,2]
[327741348,1716417032874,-15000.0,0.00016189,2]
[327741350,1716417032885,-873.40130463,0.0001619,2]
[327741352,1716417032894,-13797.00778102,0.00016286,2]
[327741371,1716417039442,-1202.99221898,0.00016286,2]
[327741372,1716417039452,-4402.97641271,0.00016288,2]
[327741373,1716417039463,-10597.02358729,0.00016288,2]
[327741374,1716417039473,-7860.64091838,0.00016288,2]
[327741380,1716417041184,-503.96475741,0.00016288,2]
[327741382,1716417041196,-6635.39432421,0.00016288,2]
[327741384,1716417041206,-657.251288,0.00016542,2]
[327741386,1716417041215,-6271.5153853,0.00016852,2]
[327741387,1716417041225,-873.40130462,0.00017157,2]
[327741388,1716417041235,-873.40130462,0.00018125,2]
[327741389,1716417041244,-5575.53639325,0.00018591,2]
[327741417,1716417043923,-9056.94205914,0.00018591,2]
[327741418,1716417043936,-4725.10773749,0.00018591,2]
[327741420,1716417043948,-3895.61716203,0.00018591,2]
[327741422,1716417043958,-666.47893298,0.0001874,2]
[327741423,1716417043969,-320.36963589,0.0001874,2]
[327741424,1716417043979,-192.64584001,0.000189,2]
[327741425,1716417043989,-676.72217563,0.00019027,2]
[327741434,1716417046844,-161.4714168,0.00019027,2]
[327741436,1716417046855,-510.780304,0.00019092,2]
[327741437,1716417046870,-362.62100062,0.00019092,2]
[327741438,1716417046881,-920.89751847,0.00019149,2]
[327741439,1716417046891,-641.1136667,0.00019178,2]
[327741440,1716417046902,-11875.82808739,0.0002,2]
[327741443,1716417073562,513.77409641,9.999e-05,2]
[327741444,1716417075569,261.21640449,9.999e-05,2]
[327741446,1716417097660,215.77329794,9.999e-05,2]
[327741447,1716417110093,1339.50128837,9.999e-05,2]
[327741448,1716417117058,410.64660071,9.999e-05,2]
[327741449,1716417120134,230.90684664,9.999e-05,2]
[327741451,1716417144578,1684.91556334,0.00015,2]
[327741452,1716417145164,9573.93852365,9.999e-05,2]
[327741458,1716417215847,507.30550384,0.00019996,11]
[327741472,1716417536896,250.0,0.00015923,2]
[327741476,1716417583186,479.736581,0.00015923,2]
[327741481,1716417655980,1149.63675721,0.00015,2]
[327741495,1716417750241,215.77329794,9.999e-05,2]
[327741499,1716417781180,230.90684664,9.999e-05,2]
[327741503,1716417888665,487.94829849,9.999e-05,2]
[327741512,1716418224053,1149.63675721,0.00015,2]
[327741583,1716418238024,-1995.7958,0.00016057,2]
[327741584,1716418238034,-628.64519434,0.00016752,2]
[327741586,1716418238043,-568.28301418,0.00016752,2]
[327741587,1716418238055,-443.02860136,0.00016752,2]
[327741588,1716418238065,-2925.54635169,0.00016851,2]
[327741589,1716418238077,-32025.9292313,0.00016851,2]
[327741590,1716418238087,-22977.352928,0.00016852,2]
[327741591,1716418238096,-1625.4202415,0.00016852,2]
[327741592,1716418238108,-577.86914612,0.00016852,2]
[327741593,1716418238120,-2817.00869688,0.00016852,2]
[327741594,1716418238130,-239.868291,0.00016852,2]
[327741595,1716418238140,-7897.30988261,0.00016946,2]
[327741596,1716418238150,-1011.31161552,0.00017578,2]
[327741597,1716418238161,-321.90266175,0.00017995,2]
[327741598,1716418238171,-452.6212924,0.00017995,2]
[327741599,1716418238182,-720.10722881,0.00017995,2]
[327741600,1716418238192,-839.21140432,0.00017995,2]
[327741601,1716418238202,-480.92643655,0.00017995,2]
[327741602,1716418238212,-2698.25242343,0.00017995,2]
[327741603,1716418238223,-278.13624383,0.00017996,2]
[327741604,1716418238362,-13491.12649279,0.00017997,2]
[327741612,1716418242364,-1149.63675721,0.00017995,2]
[327741613,1716418242374,-23828.74737677,0.00017997,2]
[327741647,1716418242904,-22103.03095866,0.00017997,2]
[327741648,1716418242914,-534.33326926,0.00018,2]
[327741649,1716418242923,-1011.31161552,0.00018405,2]
[327741650,1716418242932,-150.0,0.000189,2]
[327741651,1716418242941,-274.76300002,0.00019178,2]
[327741652,1716418242951,-1011.31161552,0.00019231,2]
[327741653,1716418242961,-481.82544463,0.00019393,2]
[327741654,1716418242971,-628.64519432,0.00019472,2]
[327741655,1716418242980,-1683.18519301,0.00019994,2]
[327741656,1716418242989,-395.46739855,0.00019994,2]
[327741657,1716418242999,-410.35678568,0.00019996,2]
[327741658,1716418243008,-338.84151194,0.00019997,2]
[327741659,1716418243019,-5946.4280129,0.00019997,2]
[327741660,1716418243137,-416.36284082,0.00019997,2]
[327741671,1716418243305,-2960.37127688,0.00019997,2]
[327741673,1716418243314,-870.48909775,0.00019997,2]
[327741675,1716418243324,-249.04146911,0.0002,11]
[327741676,1716418243333,-22851.03789124,0.0002,2]
[327741677,1716418243342,-1011.31161552,0.00020057,2]
[327741678,1716418243351,-1869.19773284,0.00020157,2]
[327741679,1716418243360,-238.75882037,0.00020157,2]
[327741680,1716418243370,-307.84229627,0.00020157,2]
[327741681,1716418243379,-1581.42130168,0.00020157,2]
[327741682,1716418243388,-16159.36080594,0.00020157,2]
[327741683,1716418243398,-1496.69412767,0.00020157,2]
[327741684,1716418243407,-187.33653148,0.00020157,2]
[327741685,1716418243417,-513.4844886,0.00020157,2]
[327741686,1716418243426,-166.666666,0.00021918,2]
[327741687,1716418243436,-628.64519432,0.00022191,2]
[327741688,1716418243445,-166.666666,0.00022431,2]
[327741689,1716418243454,-166.666666,0.00022944,2]
[327741690,1716418243464,-166.666666,0.00023456,2]
[327741691,1716418243474,-150.0,0.000239,2]
[327741692,1716418243485,-166.666666,0.00023969,2]
[327741693,1716418243495,-151.0,0.00024212,5]
[327741694,1716418243505,-300.521896,0.00024384,2]
[327741695,1716418243515,-166.666666,0.00024482,2]
[327741696,1716418243524,-295.459,0.0002483,2]
[327741697,1716418243534,-628.64519432,0.00024911,2]
[327741698,1716418243545,-151.0,0.00025049,5]
[327741699,1716418243554,-239.868291,0.00025278,2]
[327741700,1716418243564,-151.0,0.00025887,5]
[327741701,1716418243573,-620.64427722,0.00026021,2]
[327741702,1716418243583,-204.5437107,0.00026301,2]
[327741703,1716418243593,-525.64777211,0.000266,2]
[327741704,1716418243603,-151.0,0.00026724,5]
[327741705,1716418243613,-620.03221386,0.00027323,2]
[327741706,1716418243623,-1636.70152141,0.00027389,2]
[327741707,1716418243632,-1136.59312053,0.0002739,2]
[327741708,1716418243642,-500.0,0.00027397,2]
[327741709,1716418243652,-199.10658726,0.00027397,2]
[327741717,1716418248571,-272.90910403,0.00019857,2]
[327741718,1716418248581,-1634.99,0.00027387,3]
[327741719,1716418248591,-300.89341274,0.00027397,2]
[327741720,1716418248601,-500.0,0.00027397,2]
[327741721,1716418248614,-303.52242129,0.00027397,2]
[327741722,1716418248623,-1712.25821158,0.00027397,2]
[327741723,1716418248635,-1287.74178842,0.00027397,2]
[327741724,1716418248644,-3000.0,0.00027397,2]
[327741725,1716418248653,-3000.0,0.00027397,2]
[327741726,1716418248662,-3000.0,0.00027397,2]
[327741727,1716418248671,-3000.0,0.00027397,2]
[327741728,1716418248680,-151.0,0.00027397,2]
[327741729,1716418248689,-151.0,0.00027397,2]
[327741730,1716418248699,-208.196313,0.00027397,2]
[327741731,1716418248708,-208.196313,0.00027397,2]
[327741732,1716418248718,-159.766327,0.00027397,2]
[327741733,1716418248727,-159.766327,0.00027397,2]
[327741734,1716418248736,-151.0,0.00027397,2]
[327741735,1716418248746,-151.0,0.00027397,2]
[327741736,1716418248755,-151.0,0.00027397,2]
[327741737,1716418248764,-151.0,0.00027562,7]
[327741738,1716418248773,-628.64519432,0.00027631,2]
[327741739,1716418248782,-291.5019197,0.00027671,2]
[327741740,1716418248790,-291.5019197,0.00027671,2]
[327741741,1716418248800,-291.5019197,0.00027671,2]
[327741742,1716418248809,-291.5019197,0.00027671,2]
[327741743,1716418248817,-291.5019197,0.00027671,2]
[327741744,1716418248827,-291.5019197,0.00027671,2]
[327741745,1716418248835,-291.5019197,0.00027671,2]
[327741746,1716418248844,-291.5019197,0.00027671,2]
[327741747,1716418248853,-291.5019197,0.00027671,2]
[327741748,1716418248863,-291.5019197,0.00027671,2]
[327741749,1716418248873,-291.5019197,0.00027671,2]
[327741750,1716418248882,-291.5019197,0.00027671,2]
[327741751,1716418248891,-291.5019197,0.00027671,2]
[327741752,1716418248900,-291.5019197,0.00027671,2]
[327741753,1716418248909,-291.5019197,0.00027671,2]
[327741754,1716418248918,-291.5019197,0.00027671,2]
[327741755,1716418248928,-291.5019197,0.00027671,2]
[327741756,1716418248937,-291.5019197,0.00027671,2]
[327741757,1716418248947,-209.7932182,0.00027671,2]
[327741758,1716418248957,-306.0,0.00027671,2]
[327741759,1716418248967,-150.0,0.0002783,2]
[327741760,1716418248976,-309.35568163,0.00027995,2]
[327741761,1716418248987,-283.57661554,0.00027996,2]
[327741762,1716418248996,-847.82419978,0.00027997,2]
[327741763,1716418249005,-923.09009791,0.00027997,2]
[327741764,1716418249015,-309.58154492,0.00027997,2]
[327741765,1716418249025,-942.77170322,0.00027997,2]
[327741766,1716418249035,-163.20218723,0.00027997,2]
[327741767,1716418249045,-156.92939147,0.00027997,2]
[327741768,1716418249055,-400.71262343,0.00027997,2]
[327741769,1716418249065,-155.1722617,0.00027997,2]
[327741770,1716418249075,-189.91157371,0.00027997,2]
[327741771,1716418249084,-9400.5542733,0.00027997,2]
[327741772,1716418249094,-309.5048201,0.00027997,2]
[327741773,1716418249103,-316.09468062,0.00027997,2]
[327741774,1716418249113,-167.4232435,0.00027997,2]
[327741775,1716418249123,-2517.23853068,0.00027997,10]
[327741776,1716418249135,-482.76146932,0.00027997,10]
[327741777,1716418249144,-284.99869591,0.00027998,2]
[327741778,1716418249154,-155.08601275,0.00027998,2]
[327741779,1716418249163,-164.16667992,0.00027998,2]
[327741780,1716418249173,-14.54723978,0.00027998,2]
[327741859,1716419179676,194.53180167,9.999e-05,2]
[327741861,1716419189514,158.58875339,9.999e-05,2]
[327741866,1716419340437,82.14458802,0.00033,120]
[327742367,1716419443206,-1898.47491461,0.00018899,2]
[327742370,1716419443215,-243.22714602,0.000189,2]
[327742373,1716419443225,-154.9690062,0.00019,2]
[327742375,1716419443235,-2919.14539685,0.00019,2]
[327742377,1716419443246,-113.39761844,0.00019,2]
[327742379,1716419443255,-4453.08756374,0.00019391,2]
[327742381,1716419443268,-19717.32669758,0.00019391,2]
[327742384,1716419443280,-692.07724792,0.00019391,2]
[327742455,1716419444110,-34560.41331898,0.00019391,2]
[327742457,1716419444120,-24848.90668104,0.00019392,2]
[327742683,1716419446443,-51.09331896,0.00019392,2]
[327742685,1716419446453,-22851.03789124,0.0002,2]
[327742687,1716419446462,-183.7312369,0.00020793,2]
[327742689,1716419446471,-528.0,0.00020878,3]
[327742691,1716419446480,-194.44701539,0.00020893,2]
[327742693,1716419446489,-158.50953709,0.00020893,2]
[327742695,1716419446499,-9561.24585473,0.00020896,2]
[327742697,1716419446507,-487.76962202,0.00020896,2]
[327742699,1716419446519,-230.85037262,0.00020896,2]
[327742701,1716419446528,-1350.72680674,0.00020896,2]
[327742703,1716419446537,-20769.80523286,0.00021,11]
[327742705,1716419446547,-3642.72372075,0.00021,2]
[327742885,1716419511092,1908.02870215,9.999e-05,2]
[327742886,1716419518218,154.9690062,9.999e-05,2]
[327742954,1716420468166,234.35329789,9.999e-05,2]
[327742955,1716420470812,1889.34398731,9.999e-05,2]
[327742956,1716420470840,1626.3027148,9.999e-05,2]
[327743003,1716420632857,-820.00266018,0.00018899,2]
[327743088,1716420638791,-797.46,0.00018899,2]
[327743090,1716420638803,-281.01225443,0.00018899,2]
[327743092,1716420638814,-162.15143068,0.000189,2]
[327743094,1716420638823,-154.9690062,0.00019,2]
[327743095,1716420638832,-560.2606145,0.00019197,2]
[327743096,1716420638843,-183.7312369,0.00020526,2]
[327743097,1716420638852,-7944.78238929,0.00020578,2]
[327743188,1716420641130,-3270.24244667,0.00020577,2]
[327743209,1716420668129,234.30771363,9.999e-05,2]
[327743210,1716420677030,154.9690062,9.999e-05,2]
[327743211,1716420686842,2598.5410692,9.999e-05,2]
[327743213,1716420691473,803.91968543,0.00015,2]
[327743218,1716420705443,772.36964669,9.999e-05,2]
[327743219,1716420711039,521.54759599,9.999e-05,2]
[327743220,1716420711103,929.36247518,9.999e-05,2]
[327743225,1716420724461,1451.19368545,0.0001,2]
[327743226,1716420725190,473.48640743,9.999e-05,2]
[327743227,1716420725225,184.91830259,9.999e-05,2]
[327743230,1716420733639,522.84603088,9.999e-05,2]
[327743234,1716420736838,528.69445609,9.999e-05,2]
[327743243,1716420888052,483.71,0.00010959,2]
[327743244,1716420898938,403.09,0.00010959,2]
[327743245,1716420909468,335.91,0.00010959,2]
[327743246,1716420920054,279.92,0.00010959,2]
[327743247,1716420930655,233.27,0.00010959,2]
[327743248,1716420941316,194.39,0.00010959,2]
[327743249,1716420951971,161.99,0.00010959,2]
[327743250,1716420962722,809.98,0.00010959,2]
[327743251,1716421055992,307.967648,0.00014879,2]
[327743252,1716421065921,1451.12,0.00010959,2]
[327743253,1716421076767,1209.27,0.00010959,2]
[327743254,1716421087374,1007.72,0.00010959,2]
[327743255,1716421098026,839.77,0.00010959,2]
[327743256,1716421108802,699.81,0.00010959,2]
[327743280,1716421119353,583.17,0.00010959,2]
[327743281,1716421130364,485.98,0.00010959,2]
[327743282,1716421141129,404.98,0.00010959,2]
[327743283,1716421151943,337.48,0.00010959,2]
[327743284,1716421162739,281.24,0.00010959,2]
[327743285,1716421173313,234.36,0.00010959,2]
[327743286,1716421183987,195.3,0.00010959,2]
[327743287,1716421194519,195.3,0.00010959,2]
[327743288,1716421205247,781.25,0.00010959,2]
[327743291,1716421348219,234.35329789,0.00010959,2]
[327743292,1716421351049,1149.63675721,0.00015,2]
[327743293,1716421351960,155.09281498,0.00010959,2]
[327743294,1716421364695,4550.3981417,0.00014552,2]
[327743295,1716421367888,155.57344372,0.00010959,2]
[327743296,1716421368284,234.35329789,0.00010959,2]
[327743297,1716421375822,281.67342529,9.999e-05,2]
[327743298,1716421389481,16153.86918841,0.00010959,2]
[327743299,1716421392214,234.35329789,0.00010959,2]
[327743300,1716421397206,1032.56506211,0.0001,14]
[327743301,1716421407435,16153.86918841,0.00010959,2]
[327743302,1716421410213,234.35329789,0.00010959,2]
[327743303,1716421427472,7940.05235525,0.00010959,2]
[327743304,1716421432251,4883.0243608,0.00010959,2]
[327743305,1716421432412,309.88508533,0.00010959,2]
[327743306,1716421434295,234.35329789,0.00010959,2]
[327743307,1716421452818,291.87095363,0.00011507,2]
[327743308,1716421462662,782.4433163,0.00014345,2]
[327743309,1716421474806,291.87095363,0.00011507,2]
[327743310,1716421480434,19258.66211697,0.00010959,2]
[327743311,1716421483243,1977.052333,0.00014319,2]
[327743312,1716421487458,2844.6437608,0.00014318,2]
[327743313,1716421490219,234.39746541,0.00010959,2]
[327743314,1716421492803,291.87095363,0.00011507,2]
[327743315,1716421494306,1936.34539641,0.00014319,2]
[327743316,1716421494332,1461.42133392,0.00014319,2]
[327743317,1716421508233,234.39746541,0.00014319,2]
[327743318,1716421508841,291.87095363,0.00011504,2]
[327743319,1716421524230,221.64163056,0.00014319,2]
[327743320,1716421528800,291.87095363,0.0001143,2]
[327743321,1716421548804,291.87095363,0.00011429,2]
[327743322,1716421558067,154.98450155,9.999e-05,2]
[327743323,1716421566813,291.87095363,0.00011429,2]
[327743324,1716421575593,461.4511379,0.00014269,2]
[327743325,1716421584810,291.87095363,0.00011428,2]
[327743326,1716421603225,351.96129297,0.00011428,2]
[327743327,1716421644828,291.87095363,0.00011424,2]
[327743328,1716421663238,291.87095363,0.00011424,2]
[327743329,1716421682818,286.60348021,0.00011423,2]
[327743330,1716421684441,307.967648,0.00014237,2]
[327743331,1716421686642,440.5301474,0.00014237,2]
[327743332,1716421747180,-1894.15335868,0.00015225,2]
[327743333,1716421747200,-3730.82252668,0.00015226,2]
[327743334,1716421770796,-9563.3328996,0.00015224,2]
[327743335,1716421770820,-281.67342529,0.00015224,2]
[327743336,1716421770842,-194.29982165,0.00015225,2]
[327743337,1716421770864,-55692.08230154,0.00015226,2]
[327743338,1716421770884,-14268.61155192,0.00015226,2]
[327743339,1716421821930,14528.3962291,0.00014766,2]
[327743352,1716421832455,-1898.47491461,0.00015125,2]
[327743353,1716421832465,-1030.08041079,0.00015126,2]
[327743354,1716421832474,-9402.71670639,0.00015222,2]
[327743355,1716421832484,-59422.90482822,0.00015225,2]
[327743356,1716421832494,-156.43065915,0.00015237,2]
[327743357,1716421832503,-465.75179685,0.00015246,2]
[327743358,1716421832512,-1030.08041079,0.00015794,2]
[327743359,1716421832521,-151.0,0.00015842,2]
[327743360,1716421832531,-151.0,0.00015842,2]
[327743361,1716421832540,-151.0,0.00015842,2]
[327743362,1716421832549,-324.64054,0.00015842,2]
[327743363,1716421832558,-324.64054,0.00015842,2]
[327743364,1716421832568,-151.0,0.00015842,2]
[327743365,1716421832577,-165.141853,0.00015842,2]
[327743366,1716421832586,-165.141853,0.00015842,2]
[327743367,1716421832596,-151.0,0.00015842,2]
[327743368,1716421832605,-1030.08041079,0.00016462,2]
[327743369,1716421832614,-273.25891876,0.00016852,2]
[327743370,1716421832626,-2822.21449507,0.00016852,2]
[327743371,1716421832637,-2554.4,0.00016852,2]
[327743372,1716421832649,-7824.01733982,0.00016852,2]
[327743414,1716421838293,-412.1596904,0.00015221,2]
[327743415,1716421838304,-3941.84568453,0.00015221,2]
[327743416,1716421838316,-2899.43193312,0.00015221,2]
[327743421,1716421842501,-10053.37796091,0.00015221,2]
[327743423,1716421842662,-17644.66031403,0.00015221,2]
[327743424,1716421842672,-11416.10924635,0.00016852,2]
[327743425,1716421842687,-250.0,0.00016852,2]
[327743426,1716421842703,-423.780127,0.00016852,2]
[327743427,1716421842712,-423.780127,0.00016852,2]
[327743428,1716421842722,-1012.500983,0.00016852,2]
[327743429,1716421842731,-1012.500983,0.00016852,2]
[327743430,1716421842740,-1082.321684,0.00016852,2]
[327743431,1716421842750,-151.0,0.00016852,2]
[327743432,1716421842759,-1082.321684,0.00016852,2]
[327743433,1716421842768,-277.081008,0.00016852,2]
[327743434,1716421842777,-151.0,0.00016852,2]
[327743435,1716421842786,-151.0,0.00016852,2]
[327743436,1716421842796,-151.0,0.00016852,2]
[327743438,1716421842805,-151.0,0.00016852,2]
[327743439,1716421842814,-151.0,0.00016852,2]
[327743440,1716421842824,-151.0,0.00016852,2]
[327743441,1716421842833,-151.0,0.00016852,2]
[327743442,1716421842842,-7897.30988261,0.00016916,2]
[327743443,1716421842851,-761.58415877,0.00016917,2]
[327743444,1716421842861,-1030.08041079,0.0001713,2]
[327743445,1716421842870,-1030.08041079,0.00017798,2]
[327743446,1716421842879,-4600.61763073,0.00017898,2]
[327743469,1716421843828,-5855.21755881,0.00017898,2]
[327743470,1716421843838,-151.0,0.00017898,2]
[327743471,1716421843848,-151.0,0.00017898,2]
[327743472,1716421843857,-151.0,0.00017898,2]
[327743473,1716421843867,-324.64054,0.00017898,2]
[327743474,1716421843876,-324.64054,0.00017898,2]
[327743475,1716421843886,-151.0,0.00017898,2]
[327743476,1716421843895,-165.141853,0.00017898,2]
[327743477,1716421843904,-165.141853,0.00017898,2]
[327743478,1716421843915,-151.0,0.00017898,2]
[327743479,1716421843925,-151.0,0.00017898,2]
[327743480,1716421843935,-238.653557,0.00017898,2]
[327743481,1716421843944,-642.804323,0.00017898,2]
[327743482,1716421843954,-642.804323,0.00017898,2]
[327743483,1716421843963,-151.0,0.00017898,2]
[327743484,1716421843972,-151.0,0.00017898,2]
[327743485,1716421843982,-151.0,0.00017898,2]